Cogmind - Beta 16 @@@ ROGUE MODE // 2026.02.08 @ 15:07:25 Player: luckinvolved Result: Destroyed by G-67 Veteran with Plasma Rifle Performance ------------- Evolutions (7) 3500 Regions Visited (20) 4000 Robots Destroyed (332) 1660 Value Destroyed (12784) 12784 Prototype IDs (46) 920 Alien Tech Used (2) 400 Bonus (5447) 5447 TOTAL SCORE: 28711 Bonus ------- High Alert Combat Kills 2584 Follower Combat Kills 1620 Registered with UFD 300 Met Optimus in HQ 500 Met Data Miner 300 Met Zhirov 300 Friendly Fire -157 Cogmind --------- Core Integrity 0/1300 Matter 101/300 Energy 99/100 System Corruption 44% Temperature Cool (2) Movement Flying (45) Location -3/Research Parts ------- > --- POWER (3) -------- (None) > --- PROPULSION (6) --- Impulse Thruster Array > --- UTILITY (10) ----- Advanced Signal Interpreter Improved Cloaking Device > --- WEAPON (3) ------- (None) > --- INVENTORY (5) ---- (None) Peak State ------------ > --- POWER ------------ Micro Fission Core Light Antimatter Reactor Light Antimatter Reactor > --- PROPULSION ------- Improved Heavy Treads Improved Heavy Siege Treads Centrium Heavy Treads > --- UTILITY ---------- Advanced Heat Sink Improved Coolant Injector Advanced Coolant Injector Huge Storage Unit Advanced Sensor Array Improved Transmission Jammer Improved Shield Generator Advanced Hacking Suite > --- WEAPON ----------- Matter Neutralizer Matter Neutralizer Railgun > --- INVENTORY -------- Improved Treads Biometal Medium Treads Cooled Nuclear Pulse Thruster Cooled Nuclear Pulse Thruster Cooled Nuclear Pulse Thruster Cooled Nuclear Pulse Thruster Cooled Nuclear Pulse Thruster Cooled Nuclear Pulse Thruster Advanced Power Amplifier Advanced Heat Sink Advanced Heat Sink Advanced Heat Sink Advanced Heat Sink Advanced Heat Sink Improved Matter Compressor Experimental Terrain Scanner Improved Kinecellerator Improved Thermal Shield Improved Shield Generator System Shield Matter Neutralizer Vortex Trap [Rating: 141] Favorites ----------- Power Antimatter Reactor Engine Improved Ion Engine Power Core Neutrino Core Reactor Antimatter Reactor Propulsion Light Treads Treads Light Treads Leg Shield Leg Flight Unit Cooled Nuclear Pulse Thruster Utility Huge Storage Unit Device Advanced Heat Sink Storage Huge Storage Unit Processor Advanced Terrain Scan Processor Hackware System Shield Protection Light Armor Plating Weapon Coil Gun Energy Gun Dispersion Rifle Energy Cannon Heavy Plasma Cannon Ballistic Gun Coil Gun Ballistic Cannon Hypervelocity Gauss Cannon Launcher Grenade Launcher Special Weapon Molecular Deconstructor Impact Weapon Makeshift Hammer Slashing Weapon Ionic Axe Build | -11 -10 -10 -9 -9 -6 -6 -6 -6 -6 -6 -5 -5 -5 -5 -4 -4 -4 -4 -3 -3 ------- Run | Yrd Mat Sub Rec Scr Fac Was Fac Low Low Dat Pro Fac Ext Cet Fac Upp Upp Zhi Pro Res Slots Evolved 14 | . . . . . 8 . . . . . . 2 . . 2 . . . . 2 Power 1 | . . . . . 1 . . . . . . . . . . . . . . . Propulsion 4 | . . . . . 2 . . . . . . 1 . . 1 . . . . . Utility 8 | . . . . . 4 . . . . . . 1 . . 1 . . . . 2 Weapon 1 | . . . . . 1 . . . . . . . . . . . . . . . Parts Attached 230 | 7 3 8 5 5 31 10 16 5 1 . 5 26 26 4 40 1 4 7 . 26 Power 34 | 1 . 1 1 1 2 2 2 . . . 2 5 5 . 7 1 . 1 . 3 Engine 12 | 1 . 1 1 . 2 . . . . . . 3 1 . 1 1 . 1 . . Core 9 | . . . . 1 . . . . . . 1 2 2 . 3 . . . . . Reactor 13 | . . . . . . 2 2 . . . 1 . 2 . 3 . . . . 3 Propulsion 52 | 2 . . 2 2 7 4 1 . . . . 4 7 1 8 . 1 3 . 10 Treads 40 | 2 . . 2 2 7 4 1 . . . . 4 7 1 2 . . . . 8 Leg 1 | . . . . . . . . . . . . . . . . . . . . 1 Wheel . | . . . . . . . . . . . . . . . . . . . . . Hover . | . . . . . . . . . . . . . . . . . . . . . Flight 11 | . . . . . . . . . . . . . . . 6 . 1 3 . 1 Utility 96 | 2 2 2 1 1 14 3 8 5 1 . 3 15 9 1 18 . . 2 . 9 Device 51 | 1 . 1 . . 5 2 3 2 1 . 1 9 7 . 12 . . 1 . 6 Storage 8 | 1 1 . . . 2 . . . . . . 2 . . 1 . . . . 1 Processor 5 | . . . . . 2 . . 1 . . . 1 . . 1 . . . . . Hackware 7 | . . . . . . . 1 . . . . 1 . . 4 . . . . 1 Protection 25 | . 1 1 1 1 5 1 4 2 . . 2 2 2 1 . . . 1 . 1 Artifact . | . . . . . . . . . . . . . . . . . . . . . Weapon 48 | 2 1 5 1 1 8 1 5 . . . . 2 5 2 7 . 3 1 . 4 Energy Gun 2 | . . . . . 1 . . . . . . . . . 1 . . . . . Energy Cannon 9 | . . . . . 2 . 1 . . . . . . . 3 . . 1 . 2 Ballistic Gun 23 | 2 . 3 1 1 2 . 4 . . . . 2 4 2 1 . . . . 1 Ballistic Cannon 2 | . . . . . . . . . . . . . 1 . . . . . . 1 Launcher 5 | . 1 1 . . 1 1 . . . . . . . . . . 1 . . . Special Weapon 2 | . . . . . 1 . . . . . . . . . . . 1 . . . Impact Weapon 2 | . . 1 . . . . . . . . . . . . . . 1 . . . Slashing Weapon 3 | . . . . . 1 . . . . . . . . . 2 . . . . . Piercing Weapon . | . . . . . . . . . . . . . . . . . . . . . Special Melee Weapon . | . . . . . . . . . . . . . . . . . . . . . Unidentified Prototypes 17 | . . . . . 2 1 1 2 . . . 1 . 2 3 . 1 3 . 1 Corrupted Parts 2 | . . . . . . . . . . . . . 1 1 . . . . . . System Corruption 16 | . . . . . . . . . . . . . 9 7 . . . . . . Parts Lost 97 | . . 1 . . 10 . 2 . . . 1 6 19 11 18 . 2 2 . 25 Power 20 | . . 1 . . 1 . 2 . . . 1 4 2 1 3 . 1 1 . 3 Propulsion 29 | . . . . . 4 . . . . . . 1 7 3 4 . 1 . . 9 Utility 27 | . . . . . 3 . . . . . . . 4 3 8 . . 1 . 8 Weapon 21 | . . . . . 2 . . . . . . 1 6 4 3 . . . . 5 Highest Loss Streak 12 | . . 1 . . 8 . 1 . . . 1 2 6 11 4 . 2 2 . 12 To Critical Strikes 7 | . . . . . 1 . . . . . . . 3 3 . . . . . . Average Backups 19 | 3 15 24 24 24 16 19 17 17 17 18 17 18 18 13 17 3 2 3 4 5 Power 1 | . 1 1 1 1 . 2 2 1 1 1 . . . 1 . . . . . . Propulsion 4 | . 4 7 7 7 3 3 3 4 4 4 4 3 4 1 4 1 1 2 3 1 Utility 8 | . 5 8 8 10 6 6 7 8 8 9 9 10 10 9 12 1 1 . . 2 Weapon 4 | 1 4 7 7 6 3 4 3 4 4 4 4 4 3 . . 1 . . 1 . Tool/Special . | . . . . . . . . . . . . . . . . . . . . . Unused Backups 55 | . 1 6 1 9 4 3 6 . . . . 1 1 . 5 . . . . 18 Power 6 | . . 1 . 2 . 1 . . . . . . . . . . . . . 2 Propulsion 7 | . . . . 2 . 1 . . . . . . 1 . 1 . . . . 2 Utility 22 | . . 1 . 3 2 . 3 . . . . 1 . . 4 . . . . 8 Weapon 19 | . 1 4 1 2 2 . 3 . . . . . . . . . . . . 6 Tool/Special 1 | . . . . . . 1 . . . . . . . . . . . . . . Average Slot Usage (%) 89 | . 100 100 100 99 96 81 85 82 81 64 84 86 91 30 74 90 88 76 75 68 Engine 7 | . 14 14 14 11 6 5 5 . . . . 3 2 . . . 4 3 5 2 Core 2 | . . . . 2 5 . . . . . 3 5 12 . 1 14 6 2 . . Reactor 3 | . . . . . . 4 6 12 12 12 12 5 . . 8 . . . . 3 Treads 20 | . 28 28 28 28 25 15 12 12 12 12 12 15 22 6 13 . . . . 2 Flight 1 | . . . . . . . . . . . . . . . 1 30 29 25 25 16 Device 11 | . 6 8 2 . 16 20 18 20 24 25 18 17 16 3 19 25 25 24 25 14 Storage 8 | . 14 14 14 14 6 6 6 6 6 6 6 5 5 4 4 . . . . 3 Processor 2 | . . . . . 4 . . 6 6 6 6 6 5 5 3 5 5 5 5 4 Hackware 1 | . . . . . . . 1 . . . . 1 . . 5 10 10 10 10 11 Protection 8 | . 7 5 11 13 10 9 12 4 . . 5 6 8 . 2 . . . . 3 Energy Cannon 2 | . . . . . 1 12 6 6 6 1 6 4 2 . 7 . . . . . Ballistic Gun 17 | . 27 25 25 27 14 3 11 12 12 1 12 11 12 5 5 . . . . . Peak Build Rating 141 | 7 9 15 15 30 70 93 99 101 101 101 104 119 115 91 141 110 126 115 87 110 Average Rating 59 | 6 8 11 14 19 56 76 90 98 100 87 101 111 107 46 121 109 114 93 87 89 On Entrance 67 | . 7 9 13 14 30 49 88 95 96 101 101 104 108 69 43 110 108 103 87 87 Avg Prop Armor Cover (%) 13 | . . . . . . . . . . . . 7 . . . . . . . 23 Naked Turns . | . . . . . . . . . . . . . . . . . . . . . Heaviest Build 168 | 15 92 99 96 101 119 148 157 154 154 136 149 164 168 132 151 32 35 27 15 52 Greatest Support 230 | 40 40 40 43 50 90 145 150 150 150 150 150 177 154 123 230 36 48 39 39 210 Greatest Overweight (x) 4 | 4 2 2 2 2 2 1 1 1 1 . . 1 1 1 1 . . . . 1 Average Overweight (x) . | . 1 2 2 1 . . . . . . . . . . . . . . . . Largest Inventory Capacity 25 | 8 25 25 25 25 25 25 25 25 25 25 25 25 25 25 25 5 5 5 5 10 Average Capacity 23 | 7 20 25 25 25 20 23 25 25 25 25 25 25 25 22 23 5 5 5 5 9 Most Carried 25 | 6 25 25 25 25 25 25 25 25 25 25 25 25 25 20 25 5 5 5 5 10 Average Carried 21 | 3 15 24 24 24 18 22 24 24 24 25 24 24 24 17 18 5 4 4 5 6 Final Capacity 25 | 8 25 25 25 25 20 25 25 25 25 25 25 25 25 25 5 5 5 5 5 5 Final Carried 25 | 6 25 25 25 25 18 25 24 25 25 25 25 25 22 20 5 5 5 5 5 . Class Distribution -------------------- 45% | Mutant 22% | Scavenger-Tank 7% | Tank 5% | Scavenger-Mutant 4% | Scavenger-Skirmisher 4% | Skirmisher 3% | Hacker-Ninja Dominant Class ---------------- Mutant | -10/Materials Mutant | -10/Subcaves Mutant | -9/Recycling Mutant | -9/Scraptown Mutant | -6/Factory Scavenger-Tank | -6/Waste Scavenger-Tank | -6/Factory Commander-Skirmisher | -6/Lower Caves Scavenger-Skirmisher | -6/Lower Caves Scavenger-Mutant | -6/Data Miner Skirmisher | -5/Proximity Caves Scavenger-Tank | -5/Factory Scavenger-Tank | -5/Extension Mutant | -5/Cetus Scavenger-Tank | -4/Factory Hacker-Ninja | -4/Upper Caves Hacker-Assassin | -4/Upper Caves Infiltrator-Ninja | -4/Zhirov Infiltrator-Ninja | -3/Proximity Caves Hacker-Ninja | -3/Research Resources | -11 -10 -10 -9 -9 -6 -6 -6 -6 -6 -6 -5 -5 -5 -5 -4 -4 -4 -4 -3 -3 ----------- Run | Yrd Mat Sub Rec Scr Fac Was Fac Low Low Dat Pro Fac Ext Cet Fac Upp Upp Zhi Pro Res Matter Collected 10805 | 367 387 268 772 344 1025 222 1268 347 69 . 202 1824 1732 187 993 8 96 260 . 434 Remotely . | . . . . . . . . . . . . . . . . . . . . . Salvage Created 15770 | 246 393 207 641 140 1497 252 2805 580 . . 199 4220 1943 226 1588 . 53 193 . 587 Parts 742 | 19 39 13 24 4 100 2 128 23 . . 11 172 98 4 60 . 8 3 . 34 Haulers Intercepted 14 | . 2 . . . . . 6 1 . . . 1 1 . 3 . . . . . Recyclers Shooed 36 | . 3 . 11 . 7 . 2 . . . . 9 1 . 3 . . . . . Parts Field Recycled . | . . . . . . . . . . . . . . . . . . . . . Retrieved Matter . | . . . . . . . . . . . . . . . . . . . . . Parts Self-Destructed 56 | . . 5 . . . . . 35 . . 11 . . . . . 3 2 . . Prevented . | . . . . . . . . . . . . . . . . . . . . . Parts Restored . | . . . . . . . . . . . . . . . . . . . . . Kills | -11 -10 -10 -9 -9 -6 -6 -6 -6 -6 -6 -5 -5 -5 -5 -4 -4 -4 -4 -3 -3 ------- Run | Yrd Mat Sub Rec Scr Fac Was Fac Low Low Dat Pro Fac Ext Cet Fac Upp Upp Zhi Pro Res Combat Hostiles Destroyed 226 | . 12 8 3 2 23 . 38 9 . . 3 54 30 3 19 . 9 . . 13 Guns 114 | . 9 4 3 2 12 . 20 5 . . 2 30 21 1 4 . . . . 1 Cannons 58 | . . . . . 1 . 14 4 . . . 16 7 1 12 . . . . 3 AOE 43 | . 3 4 . . 9 . 3 . . . . 5 2 . . . 9 . . 8 Classes Destroyed 23 | 3 4 3 . 1 7 . . 2 . . 1 . 2 . . . . . . . Worker 19 | 1 2 . . . 4 . 4 . . . . 2 6 . . . . . . . Builder 25 | . . . . . 4 . 8 . . . . 4 4 . 3 . . . . 2 Tunneler 9 | 6 . . . . . . . . . . . 2 1 . . . . . . . Hauler 14 | . 2 . . . . . 6 1 . . . 1 1 . 3 . . . . . Recycler 19 | 1 1 . 6 . 3 . 1 . . . . 6 . . 1 . . . . . Mechanic 4 | . . . . . 2 . 1 . . . . . 1 . . . . . . . Operator 4 | . 1 . . . . . . . . . . . 1 . 1 . . . . 1 Turret 2 | . . 2 . . . . . . . . . . . . . . . . . . Watcher 10 | . 1 . . . . . . . . . . 3 . 1 2 . . . . 3 Swarmer 60 | . 12 4 . . 4 . 13 3 . . . 8 1 . 1 . 9 . . 5 Saboteur 1 | . . . . . . . . . . . . . 1 . . . . . . . Grunt 72 | . . . . . 2 . 16 3 . . . 28 13 . 10 . . . . . Brawler 6 | . . . . . . . . 1 . . . 1 4 . . . . . . . Duelist 5 | . . . . . . . . 2 . . . 2 1 . . . . . . . Protector 3 | . . . . . 1 . . . . . . . 2 . . . . . . . Sentry 20 | . . 1 3 . 3 . 4 . . . . 2 4 . 2 . . . . 1 Demolisher 2 | . . . . . . . . . . . . . 2 . . . . . . . Specialist 3 | . . . . . 3 . . . . . . . . . . . . . . . Hunter 13 | . . . . . 6 . 2 . . . 2 3 . . . . . . . . Programmer 30 | . . . . . 4 . 3 . . . . 10 . . 6 . . . . 7 Behemoth 1 | . . . . . . . . . . . 1 . . . . . . . . . Cetus Guard 3 | . . . . . . . . . . . . . . 3 . . . . . . Subdweller 3 | . . 3 . . . . . . . . . . . . . . . . . . Scrapper 2 | . . . . 2 . . . . . . . . . . . . . . . . Thug 1 | . . . . . . . . . . . . . 1 . . . . . . . Butcher 1 | . . . . . . . . . . . . . 1 . . . . . . . Best Kill Streak 12 | 3 8 6 3 2 9 . 12 5 . . 2 10 11 3 9 . 5 . . 6 Combat Bots Only 8 | . 6 4 1 2 8 . 8 5 . . 2 8 6 2 7 . 5 . . 6 Max Kills in Single Turn 9 | 1 3 3 1 1 6 . 2 2 . . 1 2 9 1 2 . 4 . . 4 Gunslinging 1 | . 1 . . . . . . . . . . . . . . . . . . . Exploded 4 | . 2 3 . . 2 . 2 . . . . 2 2 . . . 4 . . 4 Melee . | . . . . . . . . . . . . . . . . . . . . . Uniques/NPCs Destroyed 1 | . . . . . . . . . . . . . 1 . . . . . . . A7 (-5/Extension) Combat | -11 -10 -10 -9 -9 -6 -6 -6 -6 -6 -6 -5 -5 -5 -5 -4 -4 -4 -4 -3 -3 -------- Run | Yrd Mat Sub Rec Scr Fac Was Fac Low Low Dat Pro Fac Ext Cet Fac Upp Upp Zhi Pro Res Hostile Shots Fired 2176 | . 59 70 28 13 314 . 281 20 . . 30 338 279 76 262 . 26 . . 380 Missed 578 | . 18 32 10 5 96 . 87 6 . . 12 68 57 18 38 . 16 . . 115 Hits 1598 | . 41 38 18 8 218 . 194 14 . . 18 270 222 58 224 . 10 . . 265 Melee 49 | . . . . . . . . 1 . . . 16 32 . . . . . . . Projectile 1549 | . 41 38 18 8 218 . 194 13 . . 18 254 190 58 224 . 10 . . 265 AOE 7 | . . . . . . . . . . . . . 6 . . . . . . 1 Critical Strikes 117 | . . 1 . . 7 . 9 . . . . 13 18 11 37 . . . . 21 Part Disruptions 6 | . . . . . 2 . . . . . . 1 . . . . . . . 3 Damage Taken 27043 | . 357 423 260 171 2933 . 2153 308 . . 258 3739 4438 1278 3819 . 220 176 . 6510 Core 3459 | . 31 128 29 . 341 . 162 19 . . 37 263 326 393 316 . 95 . . 1319 Absorbed by Shields 3572 | . . . . . 299 . 755 . . . 86 1188 687 . 557 . . . . . Reduced by Siege Mode 771 | . . . . . . . 147 . . . . 331 11 16 246 . . . . 20 Ignored by Resistances 899 | . . . . . . . . . . . 52 542 65 240 . . . . . . Regen/Repaired (Parts) 3201 | . . . . 529 149 . 968 . . . . 355 155 28 1017 . . . . . Core Remaining (%) 44 | 100 . . . 24 . . . . . . 34 . . 1 . . . . 64 . Volleys Fired 793 | 17 37 30 49 7 65 13 118 16 4 . 7 176 93 27 83 . 6 3 . 42 Largest 3 | 2 2 2 2 2 3 2 3 3 3 . 3 3 3 3 3 . 1 1 . 2 Hottest 315 | 40 50 48 51 58 159 180 210 150 150 . 150 156 156 120 315 . 49 . . 167 Shots Fired 1772 | 34 74 43 89 14 153 22 314 42 8 . 21 412 268 42 181 . 6 3 . 46 Gun 1158 | 34 71 36 80 14 119 . 190 26 4 . 14 256 226 30 54 . . . . 4 Cannon 567 | . . . . . 28 22 122 16 4 . 7 154 41 12 127 . . . . 34 Launcher 44 | . 3 7 9 . 6 . 2 . . . . 2 1 . . . 6 . . 8 Special 3 | . . . . . . . . . . . . . . . . . . 3 . . Kinetic 1208 | 34 71 43 80 14 119 . 190 26 4 . 14 256 253 30 54 . . . . 20 Thermal 518 | . . . . . 28 22 122 16 4 . 7 154 14 12 127 . . . . 12 Explosive 37 | . 3 . 9 . 6 . 2 . . . . 2 1 . . . 6 . . 8 Electromagnetic 6 | . . . . . . . . . . . . . . . . . . . . 6 Robot Hit Streak 27 | 5 7 18 7 6 14 15 18 11 . . 7 27 13 8 12 . 1 . . 4 Robot Miss Streak 12 | 4 3 1 2 2 3 2 5 2 . . 1 7 12 3 4 . 3 . . 3 Penetration Max 2 | . . . . . 2 . 2 1 . . . 1 2 1 2 . . . . . Secondary Targets 8 | . 1 . . 1 1 . . . . . . 2 3 . . . . . . . Max Gunslinging Chain 1 | . 1 . . 1 1 . . . . . . 1 1 . . . . . . . Shots Hit Robots 1047 | 19 38 21 54 9 103 14 189 23 . . 15 246 154 17 106 . 2 4 . 33 Core Hits 616 | 8 22 16 18 4 67 1 99 14 . . 5 150 113 10 46 . 13 4 . 26 Critical Kills 47 | . . . . . 4 1 2 . . . 2 22 10 1 5 . . . . . Critical Parts Destroyed 57 | . . . . 1 2 . 6 . . . . 25 18 1 4 . . . . . Critical Strikes 108 | . . . . 1 6 1 8 . . . 2 47 31 2 9 . . . . 1 Meltdown 11 | . . . . . 1 1 1 . . . 1 3 . 1 3 . . . . . Destroy 96 | . . . . 1 5 . 7 . . . 1 44 31 1 6 . . . . . Blast 1 | . . . . . . . . . . . . . . . . . . . . 1 Melee Attacks 85 | . . 24 . . 12 . . . . . . . . . 6 1 1 4 . 37 Impact 27 | . . 24 . . 3 . . . . . . . . . . . . . . . Slashing 58 | . . . . . 9 . . . . . . . . . 6 1 1 4 . 37 Piercing . | . . . . . . . . . . . . . . . . . . . . . Sneak Attacks 5 | . . . . . 2 . . . . . . . . . 1 . . . . 2 Combat Hostiles . | . . . . . . . . . . . . . . . . . . . . . Follow-up Attacks . | . . . . . . . . . . . . . . . . . . . . . Damage Inflicted 35838 | 242 671 793 898 169 4436 481 6115 655 . . 328 6574 5254 678 4169 . 1220 382 . 2773 Guns 15239 | 236 488 280 898 168 1649 . 3041 430 . . 163 2617 3793 359 1028 . . . . 89 Cannons 11205 | . . . . . 690 481 2568 225 . . 165 2594 454 319 2741 . . . . 968 Explosions 7611 | . 169 513 . . 1910 . 465 . . . . 1228 931 . . . 1220 . . 1175 Melee 1458 | . . . . . 162 . . . . . . . . . 381 . . 382 . 533 Ramming 325 | 6 14 . . 1 25 . 41 . . . . 135 76 . 19 . . . . 8 Kinetic 16456 | 236 488 793 898 168 1649 . 3041 430 . . 163 2617 4025 359 1028 . . . . 561 Thermal 11522 | . . . . . 1497 481 2568 225 . . 165 2913 222 319 2741 . . . . 391 Explosive 5807 | . 169 . . . 1103 . 404 . . . . 805 931 . . . 1220 . . 1175 Electromagnetic 270 | . . . . . . . 61 . . . . 104 . . . . . . . 105 Impact . | . . . . . . . . . . . . . . . . . . . . . Slashing 1458 | . . . . . 162 . . . . . . . . . 381 . . 382 . 533 Piercing . | . . . . . . . . . . . . . . . . . . . . . Highest Corruption 41 | . . . . . 6 6 2 2 2 2 2 5 32 39 3 3 3 3 3 41 Average Corruption 5 | . . . . . 2 1 1 2 2 2 2 2 8 38 2 3 3 3 3 22 Corruption Purged 14 | . . . . . . 5 . . . . . 6 3 . . . . . . . Corruption Blocked . | . . . . . . . . . . . . . . . . . . . . . Effects 267 | . . . . . 15 13 20 6 19 . 12 30 72 46 11 1 2 1 . 19 Message Errors 55 | . . . . . 5 2 4 4 5 . 3 4 17 7 1 . . . . 3 Matter Fused 54 | . . . . . 4 2 6 . 3 . 3 7 15 5 3 . 1 . . 5 Heat Flow Errors 30 | . . . . . 1 3 2 . 3 . 2 4 7 5 1 . . . . 2 Energy Discharges 24 | . . . . . 1 3 2 . 1 . 1 3 7 3 2 . . . . 1 Parts Rejected 4 | . . . . . . . . . . . . . 3 . 1 . . . . . Parts Fused 4 | . . . . . . 1 1 . . . . 2 . . . . . . . . Data Loss (minor) 36 | . . . . . 3 1 3 2 4 . 1 3 6 7 1 1 1 1 . 2 Data Loss (major) 16 | . . . . . . 1 . . 1 . 2 2 2 7 . . . . . 1 Misfires 11 | . . . . . 1 . 2 . . . . 1 5 1 1 . . . . . Alerts 9 | . . . . . . . . . 2 . . 2 2 3 . . . . . . Misdirections 8 | . . . . . . . . . . . . . 1 3 . . . . . 4 Weapon Failures 16 | . . . . . . . . . . . . 2 7 5 1 . . . . 1 Overload Shots . | . . . . . . . . . . . . . . . . . . . . . Overflow Damage 928 | . 10 . . . 235 1 75 . . . 9 120 12 . 212 . 69 . . 185 Projectiles 310 | . . . . . . 1 75 . . . 9 26 12 . 140 . . . . 47 Explosions 330 | . 10 . . . 133 . . . . . . 94 . . . . 69 . . 24 Melee 288 | . . . . . 102 . . . . . . . . . 72 . . . . 114 Knockbacks 14 | . . . . . . . 1 . . . . 4 3 . . . . . . 6 Impact 7 | . . . . . . . 1 . . . . 4 2 . . . . . . . Kinetic 7 | . . . . . . . . . . . . . 1 . . . . . . 6 Secondary . | . . . . . . . . . . . . . . . . . . . . . Self-Inflicted Damage 662 | . . . 5 . 108 . 40 . . . . 80 27 . 61 . 64 . . 277 Shots 17 | . . . 1 . 4 . 2 . . . . 2 1 . 1 . 1 . . 5 Rammed 33 | 1 2 . . 1 2 . 2 . . . . 13 8 . 2 . . . . 2 Targets Rammed 35 | 1 2 . . 1 3 . 3 . . . . 13 8 . 2 . . . . 2 Kicked . | . . . . . . . . . . . . . . . . . . . . . Crushed 2 | . . . . . 1 . 1 . . . . . . . . . . . . . Highest Temperature 489 | . . 1 119 177 489 19 102 . 249 . 244 483 311 196 380 275 84 . . 392 Average Temperature 92 | . . 1 32 83 164 19 46 . 110 . 124 93 79 94 92 109 22 . . 102 Received Heat Transfer 3674 | . . 135 90 96 149 . 484 57 . . 36 1197 614 90 581 . . . . 145 Effects 28 | . . . . . 3 . . . . . 3 13 3 . 5 . . . . 1 Shutdowns 7 | . . . . . 1 . . . . . . 3 . . 2 . . . . 1 Energy Bleed 4 | . . . . . . . . . . . . 3 1 . . . . . . . Interference 15 | . . . . . . . . . . . 3 7 2 . 3 . . . . . Matter Decay 1 | . . . . . 1 . . . . . . . . . . . . . . . Short Circuit 1 | . . . . . 1 . . . . . . . . . . . . . . . Siege Activations 34 | . . . . . . . 7 1 . . 1 14 1 2 7 . . . . 1 Total Turns 536 | . . . . . . . 94 8 . . 3 297 18 25 81 . . . . 10 Longest Duration 57 | . . . . . . . 57 8 . . 3 36 18 17 25 . . . . 10 Martial Activations . | . . . . . . . . . . . . . . . . . . . . . Shielding Activations . | . . . . . . . . . . . . . . . . . . . . . Robots Disrupted . | . . . . . . . . . . . . . . . . . . . . . Combat Hostiles . | . . . . . . . . . . . . . . . . . . . . . Robots Corrupted 2 | . . . . . . . . . . . . 1 . . . . . . . 1 Combat Hostiles 1 | . . . . . . . . . . . . . . . . . . . . 1 Parts Fried 7 | . . . . . . . . . . . . 4 3 . . . . . . . Impact Corruptions 1 | . . . . . . . . . . . . 1 . . . . . . . . Robots Melted 11 | . . . . . 1 1 1 . . . 1 3 . 1 3 . . . . . Combat Hostiles 11 | . . . . . 1 1 1 . . . 1 3 . 1 3 . . . . . Parts Melted 37 | . . . . . 3 1 5 1 . . 3 15 2 1 6 . . . . . Heat Transferred 14473 | . . . . . 1500 750 3900 350 . . 250 4100 350 500 2477 . . . . 296 Parts Sabotaged . | . . . . . . . . . . . . . . . . . . . . . Parts Stolen . | . . . . . . . . . . . . . . . . . . . . . Parts Stripped . | . . . . . . . . . . . . . . . . . . . . . Power Chain Reactions . | . . . . . . . . . . . . . . . . . . . . . Alert | -11 -10 -10 -9 -9 -6 -6 -6 -6 -6 -6 -5 -5 -5 -5 -4 -4 -4 -4 -3 -3 ------- Run | Yrd Mat Sub Rec Scr Fac Was Fac Low Low Dat Pro Fac Ext Cet Fac Upp Upp Zhi Pro Res Maximum Alert Level 5 | . . . . . 2 . 3 . . . . 4 5 3 2 . . . . 1 Low Security (%) 55 | 100 100 . 100 . 62 100 46 . . . . 26 . . 11 . . . . 83 Level 1 10 | . . . . . 20 . 31 . . . . 5 . . 30 . . . . 16 Level 2 15 | . . . . . 17 . 14 . . . . 14 41 29 58 . . . . . Level 3 11 | . . . . . . . 7 . . . . 34 26 70 . . . . . . Level 4 6 | . . . . . . . . . . . . 19 28 . . . . . . . Level 5 . | . . . . . . . . . . . . . 3 . . . . . . . High Security . | . . . . . . . . . . . . . . . . . . . . . Max Security . | . . . . . . . . . . . . . . . . . . . . . Peak Influence 1794 | 10 132 . 76 . 446 149 909 . . . . 1534 1794 947 669 . . . . 378 Initial 947 | . . . 76 . . 149 . . . . . . 746 947 347 . . . . . Average 325 | 1 45 . 14 . 157 21 287 . . . . 636 920 763 433 . . . . 70 Influence Increases 10193 | 40 410 185 339 . 812 6 1427 398 . . 85 2245 2138 79 990 . 215 10 . 814 Destroy 0b10 Robot/C 5160 | . 240 140 60 . 440 . 820 320 . . 60 1100 1100 60 380 . 180 . . 260 Destroy 0b10 Robot/NC 595 | 40 35 . 30 . 70 . 100 5 . . . 95 125 5 50 . . 10 . 30 Destroy Leader 862 | . 46 . . . 110 . 188 10 . . 20 208 124 . 80 . 20 . . 56 Allied During Kill 530 | . . . . . . . 22 63 . . 5 14 426 . . . . . . . Trap Triggered on 0b10 20 | . . . . . . . . . . . . . . 10 . . . . . 10 Successful Hack 230 | . 44 . 12 . 41 . 5 . . . . 97 . . 7 . . . . 24 Select Force Hacks 180 | . . . 180 . . . . . . . . . . . . . . . . . Disable Machine 615 | . . . 15 . 60 . 135 . . . . 195 60 . 135 . . . . 15 Destroy Structure 1221 | . 15 . 42 . 61 6 97 . . . . 386 138 4 218 . . . . 254 Partial Spotted 180 | . . . . . . . . . . . . 15 . . 15 . . . . 150 Lose Combat Pursuer 600 | . 30 45 . . 30 . 60 . . . . 135 165 . 105 . 15 . . 15 Influence Decreases 9900 | 40 400 34 500 . 384 434 526 756 543 . 85 721 1970 1149 997 258 139 443 . 521 Entered New Map 3336 | . . 6 85 . . 279 . 334 104 . . . 778 745 275 228 69 433 . . Time Decay 5074 | 40 400 28 415 . 294 155 486 342 439 . 85 571 622 294 542 30 50 10 . 271 Lost Part 910 | . . . . . 90 . 20 . . . . 50 190 110 180 . 20 . . 250 Lost Ally 580 | . . . . . . . 20 80 . . . 100 380 . . . . . . . Squads Dispatched 61 | . . . . . 6 . 10 . . . . 23 11 . 5 . . . . 6 Investigation 10 | . . . . . 2 . 2 . . . . 5 . . . . . . . 1 Extermination 18 | . . . . . 3 . 4 . . . . 5 . . 3 . . . . 3 Reinforcement 17 | . . . . . 1 . 2 . . . . 7 4 . 2 . . . . 1 Assault 11 | . . . . . . . 1 . . . . 3 7 . . . . . . . Garrison 5 | . . . . . . . 1 . . . . 3 . . . . . . . 1 Intercept . | . . . . . . . . . . . . . . . . . . . . . Searches Triggered . | . . . . . . . . . . . . . . . . . . . . . Unchained Authorized 1 | . . . . . . . . . . . . . . . 1 . . . . . Data Miner Redirects 7 | . . . . . . . . . . . . 4 2 . . . . . . 1 Construction Impeded 8 | . . . . . 1 . 1 . . . . 3 3 . . . . . . . Haulers Reinforced 3 | . . . . . . . 1 . . . . . . . 2 . . . . . Active Scanning Responses . | . . . . . . . . . . . . . . . . . . . . . Cargo Convoy Interrupts 1 | . . . . . 1 . . . . . . . . . . . . . . . Stealth | -11 -10 -10 -9 -9 -6 -6 -6 -6 -6 -6 -5 -5 -5 -5 -4 -4 -4 -4 -3 -3 --------- Run | Yrd Mat Sub Rec Scr Fac Was Fac Low Low Dat Pro Fac Ext Cet Fac Upp Upp Zhi Pro Res Distress Signals 19 | . 3 . 1 . 1 . 3 . . . . 1 4 1 5 . . . . . Communications Jammed 67 | . . . . . . . . . . . . 3 3 . 59 . . . . 2 Distress Signals 65 | . . . . . . . . . . . . 2 3 . 59 . . . . 1 Times Spotted 403 | . 24 8 3 8 37 . 50 15 . . 3 77 81 4 49 . 11 1 . 32 Peak Tracking Total 12 | . 6 6 1 5 9 . 9 7 . . 2 9 12 5 9 . 6 1 . 8 Tactical Retreats 24 | . 1 1 . . 2 . 4 . . . . 6 3 . 5 . 1 . . 1 Traps | -11 -10 -10 -9 -9 -6 -6 -6 -6 -6 -6 -5 -5 -5 -5 -4 -4 -4 -4 -3 -3 ------- Run | Yrd Mat Sub Rec Scr Fac Was Fac Low Low Dat Pro Fac Ext Cet Fac Upp Upp Zhi Pro Res Traps Triggered 13 | . 1 . . . 2 . 1 . . . . 2 7 . . . . . . . Indirectly . | . . . . . . . . . . . . . . . . . . . . . Trap Hack Attempts . | . . . . . . . . . . . . . . . . . . . . . Triggered . | . . . . . . . . . . . . . . . . . . . . . Disarmed . | . . . . . . . . . . . . . . . . . . . . . Reprogrammed . | . . . . . . . . . . . . . . . . . . . . . Reused 2 | . . . . . . . . . . . . . . 1 . . . . . 1 Traps Extracted . | . . . . . . . . . . . . . . . . . . . . . Installed 2 | . . . . . . . . . . . . . . 1 . . . . . 1 Triggered 2 | . . . . . . . . . . . . . . 1 . . . . . 1 Most Traps Carried 2 | . . . . 2 2 2 2 2 2 2 2 2 2 2 1 1 1 1 1 1 Machines | -11 -10 -10 -9 -9 -6 -6 -6 -6 -6 -6 -5 -5 -5 -5 -4 -4 -4 -4 -3 -3 ---------- Run | Yrd Mat Sub Rec Scr Fac Was Fac Low Low Dat Pro Fac Ext Cet Fac Upp Upp Zhi Pro Res Machines Disabled 52 | . . 4 1 1 4 . 9 . . . . 13 9 . 9 . 1 . . 1 Max in Single Turn 6 | . . 3 1 1 3 . 2 . . . . 3 1 . 6 . 1 . . 1 Garrison Access 2 | . . . . . 1 . 1 . . . . . . . . . . . . . Machines Repaired . | . . . . . . . . . . . . . . . . . . . . . Machines Dismantled . | . . . . . . . . . . . . . . . . . . . . . Machines Sabotaged . | . . . . . . . . . . . . . . . . . . . . . Overloaded Fab Kills . | . . . . . . . . . . . . . . . . . . . . . Hacking | -11 -10 -10 -9 -9 -6 -6 -6 -6 -6 -6 -5 -5 -5 -5 -4 -4 -4 -4 -3 -3 --------- Run | Yrd Mat Sub Rec Scr Fac Was Fac Low Low Dat Pro Fac Ext Cet Fac Upp Upp Zhi Pro Res Machines Accessed 84 | . 7 1 9 5 8 . 9 . 1 4 . 20 4 . 3 1 . 4 . 8 Terminals 32 | . 5 . 3 . 2 . 2 . . . . 9 4 . 2 1 . . . 4 Fabricators 5 | . . . . . 1 . 1 . . . . 3 . . . . . . . . Repair Stations 7 | . . . . . 1 . 2 . . . . 3 . . 1 . . . . . Recycling Units 16 | . 2 . 6 . 2 . 2 . . . . 2 . . . . . . . 2 Scanalyzers 3 | . . . . . 1 . 1 . . . . 1 . . . . . . . . Garrison Access 6 | . . . . . 1 . 1 . . . . 2 . . . . . . . 2 Total Hacks 225 | . 20 4 26 13 19 . 14 . 1 28 . 53 7 . 6 1 . 17 . 16 Successful 143 | . 10 4 16 13 12 . 9 . 1 28 . 22 . . 5 1 . 17 . 5 Failed 81 | . 9 . 10 . 7 . 5 . . . . 31 7 . 1 . . . . 11 Catastrophic 24 | . 1 . 3 . . . 3 . . . . 9 3 . 1 . . . . 4 Database Lockouts 1 | . 1 . . . . . . . . . . . . . . . . . . . Manual 94 | . 17 . 17 . 10 . 4 . . . . 34 5 . 1 . 1 . . 5 Terminals 80 | . 17 . 8 . 6 . 2 . . . . 31 7 . 2 1 . . . 6 Fabricators 10 | . . . . . 1 . 1 . . . . 8 . . . . . . . . Repair Stations 19 | . . . . . 4 . 6 . . . . 5 . . 4 . . . . . Recycling Units 35 | . 3 . 18 . 5 . 2 . . . . 2 . . . . . . . 5 Scanalyzers 7 | . . . . . 2 . 1 . . . . 4 . . . . . . . . Garrison Access 11 | . . . . . 1 . 2 . . . . 3 . . . . . . . 5 Terminal Hacks 75 | . 1 4 3 13 . . . . 1 28 . 4 . . 1 1 . 17 . 2 Record 22 | . . 4 . 5 . . . . . 7 . . . . . 1 . 5 . . Part Schematic 18 | . . . 1 . . . . . . 12 . 1 . . . . . 4 . . Robot Schematic 6 | . . . . . . . . . . 6 . . . . . . . . . . Robot Analysis 14 | . 1 . 2 7 . . . . . . . . . . . . . 4 . . Prototype ID Bank 7 | . . . . . . . . . . 3 . . . . . . . 4 . . Open Door 1 | . . . . . . . . . 1 . . . . . . . . . . . Branch Access Points 2 | . . . . . . . . . . . . 1 . . 1 . . . . . Terminal Index 1 | . . . . . . . . . . . . 1 . . . . . . . . Hauler Manifests 2 | . . . . . . . . . . . . 1 . . . . . . . 1 Registered Components 1 | . . . . . . . . . . . . . . . . . . . . 1 Proto ID Catalog 1 | . . . . 1 . . . . . . . . . . . . . . . . Fabricator Hacks 7 | . . . . . 1 . 1 . . . . 5 . . . . . . . . Network Status 2 | . . . . . 1 . 1 . . . . . . . . . . . . . Load Schematic 3 | . . . . . . . . . . . . 3 . . . . . . . . Build 2 | . . . . . . . . . . . . 2 . . . . . . . . Repair Station Hacks 13 | . . . . . 3 . 5 . . . . 1 . . 4 . . . . . Scan Component 8 | . . . . . 2 . 3 . . . . 1 . . 2 . . . . . Repair 5 | . . . . . 1 . 2 . . . . . . . 2 . . . . . Recycling Unit Hacks 11 | . 2 . 7 . 1 . . . . . . . . . . . . . . 1 Report Inventory 9 | . 1 . 6 . 1 . . . . . . . . . . . . . . 1 Retrieve Components 2 | . 1 . 1 . . . . . . . . . . . . . . . . . Scanalyzer 6 | . . . . . 2 . . . . . . 4 . . . . . . . . Insert Component 1 | . . . . . . . . . . . . 1 . . . . . . . . Analyze 1 | . . . . . . . . . . . . 1 . . . . . . . . Retrieve Study 4 | . . . . . 2 . . . . . . 2 . . . . . . . . Garrison Access Hacks 2 | . . . . . 1 . 1 . . . . . . . . . . . . . Seal Access 2 | . . . . . 1 . 1 . . . . . . . . . . . . . Unauthorized Hacks 29 | . 7 . 6 . 4 . 2 . . . . 8 . . . . . . . 2 Terminals 15 | . 7 . . . 2 . . . . . . 6 . . . . . . . . Botnet 4 | . 2 . . . 1 . . . . . . 1 . . . . . . . . Skim 11 | . 5 . . . 1 . . . . . . 5 . . . . . . . . Fabricators . | . . . . . . . . . . . . . . . . . . . . . Repair Stations . | . . . . . . . . . . . . . . . . . . . . . Recycling Units 14 | . . . 6 . 2 . 2 . . . . 2 . . . . . . . 2 Mask 1 | . . . . . . . . . . . . . . . . . . . . 1 Tunnel 6 | . . . 6 . . . . . . . . . . . . . . . . . Fedlink 4 | . . . . . 2 . 1 . . . . 1 . . . . . . . . Scrapoids 3 | . . . . . . . 1 . . . . 1 . . . . . . . 1 Scanalyzers . | . . . . . . . . . . . . . . . . . . . . . Garrison Access . | . . . . . . . . . . . . . . . . . . . . . Data Cores Recovered 1 | . . . . . . . . . . . . . . . 1 . . . . . Used . | . . . . . . . . . . . . . . . . . . . . . Hacking Detections 46 | . 4 . 4 . 3 . 5 . . . . 17 4 . 2 . . . . 7 Full Trace Events 3 | . . . . . . . . . . . . 3 . . . . . . . . Feedback Events . | . . . . . . . . . . . . . . . . . . . . . Feedback Blocked . | . . . . . . . . . . . . . . . . . . . . . Robot Schematics Acquired 6 | . . . . . . . . . . 6 . . . . . . . . . . Robots Built . | . . . . . . . . . . . . . . . . . . . . . Authchips . | . . . . . . . . . . . . . . . . . . . . . Time . | . . . . . . . . . . . . . . . . . . . . . Total Robot Build Rating . | . . . . . . . . . . . . . . . . . . . . . Part Schematics Acquired 19 | . . . 1 . . . . . . 12 . 2 . . . . . 4 . . Parts Built 2 | . . . . . . . . . . . . 2 . . . . . . . . Authchips . | . . . . . . . . . . . . . . . . . . . . . Time 132 | . . . . . . . . . . . . 132 . . . . . . . . Total Part Build Rating 11 | . . . . . . . . . . . . 11 . . . . . . . . Part Studies Acquired 3 | . . . . . 2 . . . . . . 1 . . . . . . . . Parts Repaired 5 | . . . . . 1 . 2 . . . . . . . 2 . . . . . Time 312 | . . . . . 25 . 130 . . . . . . . 157 . . . . . Parts Recycled . | . . . . . . . . . . . . . . . . . . . . . Recycled Matter . | . . . . . . . . . . . . . . . . . . . . . Retrieved Matter . | . . . . . . . . . . . . . . . . . . . . . Retrieved Components 4 | . 1 . 3 . . . . . . . . . . . . . . . . . Parts Scanalyzed 1 | . . . . . . . . . . . . 1 . . . . . . . . Part Schematics Acquired 1 | . . . . . . . . . . . . 1 . . . . . . . . Parts Damaged 1 | . . . . . . . . . . . . 1 . . . . . . . . Bothacking | -11 -10 -10 -9 -9 -6 -6 -6 -6 -6 -6 -5 -5 -5 -5 -4 -4 -4 -4 -3 -3 ------------ Run | Yrd Mat Sub Rec Scr Fac Was Fac Low Low Dat Pro Fac Ext Cet Fac Upp Upp Zhi Pro Res Used RIF Installer . | . . . . . . . . . . . . . . . . . . . . . Robots Hacked . | . . . . . . . . . . . . . . . . . . . . . Non-combat . | . . . . . . . . . . . . . . . . . . . . . Combat . | . . . . . . . . . . . . . . . . . . . . . Robot Hacks Applied . | . . . . . . . . . . . . . . . . . . . . . Relay Couplers Released 4 | . . . . . . . . . . . . . . . . . . . . 4 Programmers 4 | . . . . . . . . . . . . . . . . . . . . 4 Fabnet Peak Effective % . | . . . . . . . . . . . . . . . . . . . . . Robots Rewired 13 | . . . . . . . . 2 . . . . 11 . . . . . . . Allies Hacked . | . . . . . . . . . . . . . . . . . . . . . Hacks Repelled . | . . . . . . . . . . . . . . . . . . . . . Allies | -11 -10 -10 -9 -9 -6 -6 -6 -6 -6 -6 -5 -5 -5 -5 -4 -4 -4 -4 -3 -3 -------- Run | Yrd Mat Sub Rec Scr Fac Was Fac Low Low Dat Pro Fac Ext Cet Fac Upp Upp Zhi Pro Res Total Allies 36 | . . . . 2 . . 5 2 . . . 5 22 . . . . . . . Largest Group 8 | . . . . 1 . . 5 4 2 2 2 5 8 . . . . . . . Highest-Rated Group 340 | . . . . 25 . . 140 112 58 58 58 241 340 . . . . . . . Highest-Rated Ally 159 | . . . . 25 . . 28 29 29 29 29 50 159 . . . . . . . Total Orders 1 | . . . . . . . . 1 . . . . . . . . . . . . ROAM 1 | . . . . . . . . 1 . . . . . . . . . . . . Ally Attacks 314 | . . . . . . . 20 64 . . 18 27 185 . . . . . . . Total Damage 7746 | . . . . . . . 335 1053 . . 282 539 5537 . . . . . . . Kills 50 | . . . . . . . 3 7 . . . 2 38 . . . . . . . Allies Corrupted 2 | . . . . . . . . . . . . . 2 . . . . . . . Allies Melted 2 | . . . . 2 . . . . . . . . . . . . . . . . Intel | -11 -10 -10 -9 -9 -6 -6 -6 -6 -6 -6 -5 -5 -5 -5 -4 -4 -4 -4 -3 -3 ------- Run | Yrd Mat Sub Rec Scr Fac Was Fac Low Low Dat Pro Fac Ext Cet Fac Upp Upp Zhi Pro Res Active Infowar (turns) 14947 | 120 1059 1120 510 . 1175 . 1733 498 1113 165 960 2486 1055 3 1357 75 106 257 126 1029 Sensors 2389 | . . . . . . . . . . . . . . . 808 75 106 257 126 1017 IFF 2817 | . . . . . . . . 497 1113 165 957 85 . . . . . . . . Terrain 10421 | . . . . . 998 . 1733 490 1112 165 957 1781 975 3 658 75 106 257 126 985 Structural 1617 | . . . . . . . . . . . . . . . 170 75 106 257 126 883 Seismic 4275 | 120 1059 1120 510 . 778 . . . . . . 688 . . . . . . . . Decoding 717 | . . . . . . . . . . . . 717 . . . . . . . . Cloaking 12 | . . . . . . . . . . . . . . . . . . . . 12 Jamming 4454 | . . . . . . . . . . . . 1105 989 . 1232 75 58 1 . 994 ECM 1 | . . . . . . . . . . . . . . . . . . 1 . . Robot Analysis Total 14 | . 1 . 2 7 . . . . . . . . . . . . . 4 . . Derelict Logs Recovered 12 | . . 1 . 4 . . . 2 2 . 2 . . . . 1 . . . . Drone Launches . | . . . . . . . . . . . . . . . . . . . . . Drone Recoveries . | . . . . . . . . . . . . . . . . . . . . . Decoded 0b10 Intel 49 | . . . . . . . . . . . . 49 . . . . . . . . Items 49 | . . . . . . . . . . . . 49 . . . . . . . . Exploration | -11 -10 -10 -9 -9 -6 -6 -6 -6 -6 -6 -5 -5 -5 -5 -4 -4 -4 -4 -3 -3 ------------- Run | Yrd Mat Sub Rec Scr Fac Was Fac Low Low Dat Pro Fac Ext Cet Fac Upp Upp Zhi Pro Res Turns Passed 31062 | 256 2369 1795 2647 6473 1791 1163 2389 766 1119 165 1024 2993 2106 655 1549 75 106 257 126 1238 Spaces Moved 14790 | 113 868 501 779 2056 720 595 940 364 557 94 568 1118 771 259 748 282 242 359 418 2438 Core 150 | 19 . . . . . . . . . . . . . 39 . . . . . 92 Treads 10861 | 94 868 501 779 2056 720 595 940 364 557 94 568 1118 771 220 545 . . . . 71 Legs . | . . . . . . . . . . . . . . . . . . . . . Wheels . | . . . . . . . . . . . . . . . . . . . . . Hover . | . . . . . . . . . . . . . . . . . . . . . Flight 3779 | . . . . . . . . . . . . . . . 203 282 242 359 418 2275 Fastest Speed 6 | 50 160 320 320 245 160 160 160 170 170 170 170 170 162 50 6 20 6 20 24 12 Average Speed 174 | 163 252 320 320 312 183 179 179 185 170 170 170 183 198 206 129 20 19 23 24 29 Slowest Speed 325 | 250 320 320 320 325 325 255 255 255 255 170 170 260 245 240 240 20 24 26 24 225 Overloaded Moves 82 | . . . . . . . . . . . . . . . 13 . 9 . . 60 Propulsion Burnouts . | . . . . . . . . . . . . . . . . . . . . . Robots Hopped 6 | . . . . . . . . . . . . . . . . . . . . 6 Potential Cave-ins 1 | . . . . . . . . . . . . . 1 . . . . . . . Cave-ins Triggered . | . . . . . . . . . . . . . . . . . . . . . Exploration Rate (%) 58 | 6 94 23 98 89 20 97 28 58 78 70 86 38 84 65 20 49 45 89 65 25 Regions Visited 20 Branch Regions 13 Pre-discovered Areas 14 | . . . 6 . 1 . . 1 1 1 . 1 . . . . . 3 . . Known Exits Taken 10 | . 1 1 . . . . . . . . 1 1 . 1 1 1 1 1 1 . Unknown Exits Taken 8 | 1 . . 1 1 . . 1 1 1 1 . . 1 . . . . . . . Scrap Searched 18 | . . 4 . 3 . . . 1 2 . 2 . . . . 2 3 . 1 . Spaces Dug 130 | . . 9 . . 12 1 16 2 4 . . 39 . . 18 1 . . . 28 Terrain Destroyed 1040 | . 24 46 71 4 69 6 117 13 4 . 1 199 93 10 104 1 126 . . 152 Melee 41 | . . 2 . . 10 . . . . . . . . . . 1 . . . 28 Projectile 296 | . . 3 . 4 7 6 56 13 4 . 1 76 44 10 64 . . . . 8 AOE 697 | . 24 41 71 . 52 . 60 . . . . 119 48 . 40 . 126 . . 116 Terrain Rammed . | . . . . . . . . . . . . . . . . . . . . . Walls Destroyed . | . . . . . . . . . . . . . . . . . . . . . Machines Disabled . | . . . . . . . . . . . . . . . . . . . . . Actions | -11 -10 -10 -9 -9 -6 -6 -6 -6 -6 -6 -5 -5 -5 -5 -4 -4 -4 -4 -3 -3 --------- Run | Yrd Mat Sub Rec Scr Fac Was Fac Low Low Dat Pro Fac Ext Cet Fac Upp Upp Zhi Pro Res Total 18388 | 146 971 625 854 2102 1044 679 1387 419 723 99 606 1708 1123 340 1157 298 293 518 442 2854 Wait 1574 | 3 39 35 6 . 141 2 243 16 152 . 20 283 37 21 193 14 32 123 25 189 Move 14761 | 112 867 500 778 2056 720 594 939 363 556 93 567 1117 771 258 747 281 241 358 417 2426 Hop 6 | . . . . . . . . . . . . . . . . . . . . 6 Pick Up 251 | 6 20 8 5 12 20 22 13 2 4 . 1 22 18 16 33 . 1 5 . 43 Fast Attach 101 | 7 . . . 7 3 2 3 3 . 3 1 9 6 3 24 1 2 7 . 20 Attach 126 | . . 1 . . 22 9 3 . 1 . 1 12 16 5 32 . 4 4 . 16 Detach 41 | . . . . . 5 5 3 1 1 . . 5 . 1 5 . 3 . . 12 Swap 248 | . 4 18 7 7 41 8 46 7 2 . 9 51 17 1 19 . . 3 . 8 Drop 209 | . 2 9 9 13 12 22 16 3 3 3 . 20 12 6 13 1 3 11 . 51 Fire 793 | 17 37 30 49 7 65 13 118 16 4 . 7 176 93 27 83 . 6 3 . 42 Melee 85 | . . 24 . . 12 . . . . . . . . . 6 1 1 4 . 37 Ram 3 | . . . . . . . . . . . . . . 1 . . . . . 2 Kick . | . . . . . . . . . . . . . . . . . . . . . Crush 32 | 1 2 . . . 3 . 3 . . . . 13 7 . 2 . . . . 1 Escape Stasis 4 | . . . . . . . . . . . . . 4 . . . . . . . Rewire 152 | . . . . . . 2 . 8 . . . . 142 . . . . . . . Trap 2 | . . . . . . . . . . . . . . 1 . . . . . 1 Miscellaneous . | . . . . . . . . . . . . . . . . . . . . . Route ------- -11/Scrapyard -10/Materials (discovered 5 exits: [*Mat x3] / [*Min] / *Sub) -10/Subcaves (discovered 3 exits: *Mat x2 / *Rec) -9/Recycling (discovered 2 exits: [*Fac] / *Scr) -9/Scraptown (discovered 2 exits: *Fac x2) -6/Factory (discovered 3 exits: *Fac / [Low x2]) -6/Waste -6/Factory (discovered 3 exits: *Fac x2 / [*Low]) -6/Lower Caves -6/Lower Caves (discovered 2 exits: *Fac / *Dat) -6/Data Miner -5/Proximity Caves -5/Factory (discovered 8 exits: *Fac x4 / Upp x2 / *Ext x2) -5/Extension (discovered 2 exits: *Fac / [*Cet]) -5/Cetus (discovered 2 exits: *Fac / [*Arc]) -4/Factory (discovered 4 exits: *Res x2 / *Upp x2) -4/Upper Caves -4/Upper Caves (discovered 2 exits: *Res / *Zhi) -4/Zhirov -3/Proximity Caves -3/Research (discovered 3 exits: *Res / *Arm / Tes) History --------- Turn | Location | Event 9 | -11/Scrapyard | Discovered new exit (range 15) 257 | -11/Scrapyard | Entered Materials 315 | -10/Materials | Build established: Mutant 631 | -10/Materials | Discovered new exit (range 11) 1330 | -10/Materials | Discovered new exit (range 13) 1379 | -10/Materials | Central database locked down 1477 | -10/Materials | Discovered new exit (range 15) 1902 | -10/Materials | Discovered new exit (range 6) 1959 | -10/Materials | Identified exit to Subcaves 2011 | -10/Materials | Learned Storage emergency access door positions 2023 | -10/Materials | Learned location of 1 exit from Storage 2044 | -10/Materials | Learned location of 2 exits from Subcaves 2626 | -10/Materials | Entered Subcaves 2627 | -10/Subcaves | Identified exit to Recycling 2627 | -10/Subcaves | Identified exit to Materials 2847 | -10/Subcaves | A swath of the cavern ceiling suddenly collapsed 2946 | -10/Subcaves | Shifting Twisted Machinery released Riot Gun 2950 | -10/Subcaves | Shifting Twisted Machinery released Barrage Gun 3176 | -10/Subcaves | Shifting Twisted Machinery released Piercing Trap 3180 | -10/Subcaves | Discovered exit to Materials (range 7) 3202 | -10/Subcaves | Shifting Twisted Machinery released Sub. Laser 3357 | -10/Subcaves | Visited Clippyterm 3366 | -10/Subcaves | Learned Research security intel 4163 | -10/Subcaves | Learned location of 1 exit from Materials 4233 | -10/Subcaves | Core integrity fell below 50% 4421 | -10/Subcaves | Entered Recycling 5298 | -9/Recycling | Build established: Scavenger-Mutant 5928 | -9/Recycling | Discovered new exit (range 16) 6076 | -9/Recycling | Build established: Mutant 6994 | -9/Recycling | Scanned before Scraplab entrance 7039 | -9/Recycling | Entered Scraplab 7064 | -9/Recycling | Discovered new exit (range 2) 7068 | -9/Recycling | Entered Scraptown 7201 | -9/Scraptown | Visited The Evicted 7275 | -9/Scraptown | Visited Red Mages 7345 | -9/Scraptown | Found Relay Coupler [Proto] 7483 | -9/Scraptown | Visited Awakened 7637 | -9/Scraptown | Visited Cyclists 7755 | -9/Scraptown | Visited Supply Room 7889 | -9/Scraptown | Scanned Subdweller tech in exchange for log data 7899 | -9/Scraptown | Learned 12 Research zone layouts 7902 | -9/Scraptown | Learned Research security intel 8037 | -9/Scraptown | Discovered new exit (range 11) 8309 | -9/Scraptown | Visited CR-KLE's Repair Center 8440 | -9/Scraptown | Visited UFD Registry 8472 | -9/Scraptown | Registered with UFD as "Flakglider" 8830 | -9/Scraptown | Guru changed UFD alias to "Cryochip" 9144 | -9/Scraptown | Visited Analyses Database 9214 | -9/Scraptown | Visited Scrap Suit Storage 9326 | -9/Scraptown | Visited A0-MCA Data Center 9381 | -9/Scraptown | Visited Science Guys 9537 | -9/Scraptown | Visited Infowarlord's Domain 9566 | -9/Scraptown | Found Exp. Terrain Scanner 9634 | -9/Scraptown | Visited Junk Repository 9773 | -9/Scraptown | Visited Scrapoid Pod Storage 9876 | -9/Scraptown | Visited Observation Area 9997 | -9/Scraptown | Visited Botcube Research 10034 | -9/Scraptown | Botcube activated 10062 | -9/Scraptown | Botcube activated 10202 | -9/Scraptown | Visited Modified Component R&D 11245 | -9/Scraptown | Heard Great Nut preacher, LISTEN AND RECITE! 11879 | -9/Scraptown | Entered Cyclist Reading Room 12622 | -9/Scraptown | Visited CPS Storage 12697 | -9/Scraptown | CR-KLE repaired 7 parts 13249 | -9/Scraptown | Met Optimus 13249 | -9/Scraptown | Accepted into 0bPrime 13458 | -9/Scraptown | Civil war broke out across Scraptown 13466 | -9/Scraptown | Discovered new exit (range 5) 13522 | -9/Scraptown | Lost 5 allies 13541 | -9/Scraptown | Entered Factory 13541 | -6/Factory | Evolved 8 slots: Power x1, Propulsion x2, Utility x4, Weapon x1 13541 | -6/Factory | Discovered new exit (range 15) 13766 | -6/Factory | Identified exit to Factory 13809 | -6/Factory | Loaded intel: 8 recycling unit locations 13897 | -6/Factory | Build established: Tank 14009 | -6/Factory | Spotted B-75 Beast 14070 | -6/Factory | Discovered new exit (range 29) 14237 | -6/Factory | Build established: Mutant 14316 | -6/Factory | Learned location of Protoforge (-2) 14776 | -6/Factory | Repaired Coil Gun+ 14889 | -6/Factory | Discovered new exit (range 19) 14993 | -6/Factory | Cargo convoy interrupted 15077 | -6/Factory | Lost 8 parts (1p4n2u1w) 15084 | -6/Factory | Destroyed 8 combat bots 15332 | -6/Factory | Sucked down chute 15332 | -6/Factory | Entered Waste 15332 | -6/Waste | The area was eerily silent 15464 | -6/Waste | Discovered new exit (range 12) 15515 | -6/Waste | Found Prototype Launcher 15515 | -6/Waste | Identified Scatter Rocket Array 15822 | -6/Waste | Build established: Scavenger-Mutant 16319 | -6/Waste | Build established: Scavenger-Tank 16495 | -6/Waste | Entered Factory 16825 | -6/Factory | Discovered exit to Factory (range 10) 17484 | -6/Factory | Garrison activated, responded to threat 18155 | -6/Factory | Repaired Imp. Heavy Siege Treads 18224 | -6/Factory | Repaired Imp. Heavy Treads 18240 | -6/Factory | Core integrity fell below 50% 18466 | -6/Factory | Build established: Tank 18541 | -6/Factory | Destroyed 8 combat bots 18595 | -6/Factory | First assault squad dispatched 18660 | -6/Factory | Loaded intel: 8 recycling unit locations 18746 | -6/Factory | Discovered exit to Factory (range 16) 18793 | -6/Factory | Scrapoids reinforcements arrived? 18803 | -6/Factory | Discovered new exit (range 15) 18884 | -6/Factory | Entered Lower Caves 18884 | -6/Lower Caves | Accompanied by 4 allies 18938 | -6/Lower Caves | Found Imp. Powered Armor 19008 | -6/Lower Caves | Learned Factory emergency access door positions 19111 | -6/Lower Caves | Found Alien Artifact 19111 | -6/Lower Caves | Identified Core Expander 19111 | -6/Lower Caves | Installed Core Expander, added new Power slot 19232 | -6/Lower Caves | Build established: Commander-Skirmisher 19260 | -6/Lower Caves | Spotted B-75 Beast 19347 | -6/Lower Caves | Discovered new exit (range 22) 19454 | -6/Lower Caves | Attracted the attention of an 0b10 outpost 19518 | -6/Lower Caves | Lost 4 allies 19650 | -6/Lower Caves | Entered another Lower Caves area 19650 | -6/Lower Caves | Accompanied by 2 allies 19718 | -6/Lower Caves | Discovered exit to Factory (range 20) 20092 | -6/Lower Caves | Build established: Scavenger-Skirmisher 20121 | -6/Lower Caves | Learned Factory security intel 20365 | -6/Lower Caves | Encountered a Warlord checkpoint 20580 | -6/Lower Caves | Discovered new exit (range 28) 20769 | -6/Lower Caves | Entered Data Miner 20769 | -6/Data Miner | Accompanied by 2 allies 20769 | -6/Data Miner | Discovered new exit (range 6) 20803 | -6/Data Miner | Met Data Miner 20841 | -6/Data Miner | Learned location of Section 7 (-2) 20841 | -6/Data Miner | Acquired the access code to Warlord's prototype stash 20870 | -6/Data Miner | Received God Mode back door access code from Data Miner 20934 | -6/Data Miner | Entered Proximity Caves 20934 | -5/Proximity Caves | Accompanied by 2 allies 21038 | -5/Proximity Caves | Spotted B-75 Beast 21056 | -5/Proximity Caves | Destroyed B-75 Beast 21535 | -5/Proximity Caves | Learned location of 1 exit from Factory 21563 | -5/Proximity Caves | Build established: Skirmisher 21745 | -5/Proximity Caves | Received a Behemoth hack from an annoying Tinkerer 21836 | -5/Proximity Caves | Discovered exit to Factory (range 16) 21958 | -5/Proximity Caves | Entered Factory 21958 | -5/Factory | Evolved 2 slots: Propulsion x1, Utility x1 21959 | -5/Factory | Identified exit to Upper Caves 22268 | -5/Factory | Fabricated Lgt. Regenerative Plating (x1) 22289 | -5/Factory | Garrison activated, responded to threat 22302 | -5/Factory | Build established: Tank 22707 | -5/Factory | Fabricated Imp. KE Penetrator? 22886 | -5/Factory | Discovered new exit (range 30) 22991 | -5/Factory | Loaded intel: 8 recycling unit locations 23012 | -5/Factory | Incoming investigation squad redirected 23223 | -5/Factory | Build established: Scavenger-Tank 23226 | -5/Factory | Identified exit to Extension 23314 | -5/Factory | Destroyed 8 combat bots 23421 | -5/Factory | Discovered new exit (range 15) 23670 | -5/Factory | Scrapoid reinforcements arrived 23671 | -5/Factory | Incoming investigation squad redirected 23719 | -5/Factory | Lost 5 allies 24217 | -5/Factory | Learned location of 1 exit from Upper Caves 24293 | -5/Factory | Identified exit to Factory 24297 | -5/Factory | Learned Research terminal intel 24312 | -5/Factory | Learned Armory interactive machine intel 24358 | -5/Factory | First assault squad dispatched 24374 | -5/Factory | Incoming assault squad redirected 24385 | -5/Factory | Incoming assault squad redirected 24951 | -5/Factory | Entered Extension 25015 | -5/Extension | Rescued a captive Derelict 25017 | -5/Extension | Rescued a captive Derelict 25083 | -5/Extension | Rescued a captive Derelict 25083 | -5/Extension | Rescued a captive Derelict 25286 | -5/Extension | Rescued A7 25313 | -5/Extension | Rescued a captive Derelict 25851 | -5/Extension | First assault squad dispatched 25976 | -5/Extension | Disrupted transfer network 26005 | -5/Extension | Spotted B-75 Beast 26027 | -5/Extension | Allies destroyed B-75 Beast 26093 | -5/Extension | Spotted B-75 Beast 26111 | -5/Extension | Allies destroyed B-75 Beast 26356 | -5/Extension | System corruption reached 10% 26503 | -5/Extension | Rescued a captive Derelict 26504 | -5/Extension | Rescued a captive Derelict 26613 | -5/Extension | Lost 4 allies 26713 | -5/Extension | Rescued a captive Derelict 26719 | -5/Extension | Rescued a captive Derelict 26768 | -5/Extension | Incoming assault squad redirected 26807 | -5/Extension | Incoming assault squad redirected 26816 | -5/Extension | Allies destroyed A7 26852 | -5/Extension | Lost 7 allies 26892 | -5/Extension | Lost 5 parts (1p2n2w) 26903 | -5/Extension | Extracted ID and sensor layout for unrecognized location from A7's data core 26930 | -5/Extension | Rescued a captive Derelict 26932 | -5/Extension | Rescued a captive Derelict 26989 | -5/Extension | System corruption reached 30% 26995 | -5/Extension | Disrupted transfer network 27024 | -5/Extension | Core integrity fell below 50% 27032 | -5/Extension | Discovered exit to Factory (range 10) 27034 | -5/Extension | Discovered new exit (range 6) 27044 | -5/Extension | Lost 3 parts (2n1u) 27057 | -5/Extension | Entered Cetus 27087 | -5/Cetus | Lost 6 parts (1p3n1u1w) 27124 | -5/Cetus | Spotted Cetus Guard 27124 | -5/Cetus | Spotted Cetus Guard 27129 | -5/Cetus | Spotted Cetus Guard 27131 | -5/Cetus | Spotted Cetus Guard 27139 | -5/Cetus | Destroyed Cetus Guard 27159 | -5/Cetus | Destroyed Cetus Guard 27178 | -5/Cetus | Core integrity fell below 20% 27199 | -5/Cetus | Lost 11 parts (1p3n3u4w) 27205 | -5/Cetus | Destroyed Cetus Guard 27430 | -5/Cetus | Build established: Mutant 27433 | -5/Cetus | Discovered new exit (range 15) 27666 | -5/Cetus | Discovered exit to Factory (range 16) 27712 | -5/Cetus | Entered Factory 27712 | -4/Factory | Evolved 2 slots: Propulsion x1, Utility x1 27713 | -4/Factory | Identified exit to Research 28021 | -4/Factory | Repaired Broken Imp. Heavy Siege Treads? 28102 | -4/Factory | Repaired Imp. Heavy Treads 28251 | -4/Factory | Build established: Hacker-Tank 28341 | -4/Factory | Unchained authorized (6S-H0T) 28425 | -4/Factory | Destroyed 7 combat bots 28585 | -4/Factory | Build established: Scavenger-Tank 28990 | -4/Factory | Identified exit to Upper Caves 29090 | -4/Factory | Lost 3 parts (1u2w) 29136 | -4/Factory | Spotted B-86 Titan 29187 | -4/Factory | Lost 4 parts (3n1u) 29261 | -4/Factory | Entered Upper Caves 29262 | -4/Upper Caves | Identified exit to Upper Caves 29307 | -4/Upper Caves | Learned Research terminal intel 29336 | -4/Upper Caves | Entered another Upper Caves area 29337 | -4/Upper Caves | Discovered exit to Research (range 15) 29350 | -4/Upper Caves | Acquired the password to a Derelict Tinkerer's latest research 29356 | -4/Upper Caves | Found Prototype Special Weapon 29356 | -4/Upper Caves | Identified Molecular Deconstructor 29440 | -4/Upper Caves | Discovered new exit (range 10) 29442 | -4/Upper Caves | Identified exit to Zhirov 29442 | -4/Upper Caves | Entered Zhirov 29443 | -4/Zhirov | Discovered new exit (range 3) 29447 | -4/Zhirov | Met Zhirov 29452 | -4/Zhirov | Learned location of Quarantine (-2) 29452 | -4/Zhirov | Learned location of Testing (-3) 29454 | -4/Zhirov | Zhirov requested help retrieving the SGEMP Prototype 29458 | -4/Zhirov | Found Alien Artifact 29458 | -4/Zhirov | Identified Integrated Reactor 29458 | -4/Zhirov | Installed Integrated Reactor, increased core energy generation (+10) 29541 | -4/Zhirov | Cloak Generator disabled 29541 | -4/Zhirov | Attacked by Zhirov 29552 | -4/Zhirov | Enhanced Grunts warped into view 29571 | -4/Zhirov | Zhirov detonated his lab 29598 | -4/Zhirov | Identified exit to Proximity Caves 29602 | -4/Zhirov | Lost 8 allies 29699 | -4/Zhirov | Entered Proximity Caves 29700 | -3/Proximity Caves | Spotted B-86 Titan 29823 | -3/Proximity Caves | Discovered exit to Research (range 6) 29825 | -3/Proximity Caves | Entered Research 29825 | -3/Research | Evolved 2 slots: Utility x2 29826 | -3/Research | Identified exit to Armory 29826 | -3/Research | Identified exit to Testing 29829 | -3/Research | Loaded intel: 24 terminal locations 30058 | -3/Research | Discovered new exit (range 3) 30058 | -3/Research | Identified exit to Research 30133 | -3/Research | Build established: Hacker-Ninja 30779 | -3/Research | System corruption reached 10% 30873 | -3/Research | Lost 12 parts (2p3n5u2w) 30968 | -3/Research | Garrison activated, responded to threat 30991 | -3/Research | Lost 3 parts (1n2w) 30996 | -3/Research | System corruption reached 30% 31017 | -3/Research | Core integrity fell below 50% 31029 | -3/Research | Core integrity fell below 20% 31048 | -3/Research | Lost 5 parts (3n1u1w) 31051 | -3/Research | Incoming investigation squad redirected 31063 | -3/Research | Destroyed by G-67 Veteran with Plasma Rifle Last Messages --------------- UFD!ETA<19> UFD!SANITIZING UFD!... 31036_ ALERT: Suspicious activity at Recycling Unit R003. Dispatching Investigation squad. 31038_ Acquired Biometal Medium Treads. 31044_ Slammed into P-80 Master. 31049_ Recycling Unit disabled. 31049_ Imp. Thunder Leg tumbles out of recycling unit. 31051_ ALERT: Higher priority target reported, redirecting investigation. 31054_ D/2NSBGBLSU2T #### # | | + ### ### ##### #### # | | # ### ### ##### #### # | | ???##?## ??## ################### ###### # | | ?#???? ??? ## ##### ## ### + # | | ?????#????? ## ##### ## ### ## # | | ?? ?????????? ##### """ """ ## ### ######### | | ?????#??H?? ?? #??## """ """ ## ###+######### | | """??????????? ##?## """ """ # # # | | T""? ????????? ???## + # # | | ????????? #??#/#??## g # + "" # | | ?????#??????? ? # """ g + # "" # | | ???????#???? ? ?? # """ Y # # "" # | | ??????#? ????? ??? # """@g" " !# # S # | | ????????? + ? ?? # pgpp"Y"=!# # "" # | | ??????#? ?#? ??"?? + ! = ""* # # "" # | | ???#????????? ???? ############## # "" # | | ???????# ????????? ############## + # | | ???????#? ############???????#### # # | | ????##??? ############????##???## # # | | ?????#??? # ##?##?###??## # # | | ????#?#? # #######??#### # # | | ????????? # #####????#### # # | | ??????## # """"" ##?#?????##"" #"########## | | ????#?## # """"" ###????#?##"T # # | | ?????### # """"" ##?#??#??#### " # | | ????#?## # ####?######## "=! # | | #### # # ## ###### ]% # =! # | | ######## ##+### ###### #########!*= #!=] """ # | | ! = ![^!= #! * """ # | | * !=* *!= #!!] """ # | | !%!!= ! ] / "" # | | "" """ """ % ! ! ! ] # """ # | | "" """ """ ###+## # """ # | | "" """ """ #=#[ """ # | | """ = # # | | ""# =! [ # | | ""# ## # # | +----------------------------------------------------+ Best States ------------- Heat Dissipation 113 Coolant Potential 180 Energy Generation 54 Energy Capacity 610 Matter Stores 333 Matter Capacity 500 Sight Range 16 Robot Scan Range 16 Terrain Scan Range 30 Terrain Scan Density 210 Jamming Range 14 Cloak Strength 3 Base Temperature (-) 150 Armor Coverage 1500 Resistance: KI 25 Resistance: TH 25 Weapon Cycling 25 Evasion (%) 78 Recoil Reduction 11 Energy Filtering 50 Offensive Hacking 14 Defensive Hacking 20 Item Schematics ----------------- Field Recycling Unit | -9/Recycling | Hacked Combat Drone Bay | -6/Data Miner | Free Lgt. Regenerative Plating | -6/Data Miner | Free Enh. Flexi-carbon Leg | -6/Data Miner | Free Adv. EM Disruption Field | -6/Data Miner | Free Imp. KE Penetrator | -6/Data Miner | Free Impulse Thruster | -6/Data Miner | Free Adv. Actuator Array | -6/Data Miner | Free Hvy. Disruptor Cannon | -6/Data Miner | Free Lrn. Proton Cannon | -6/Data Miner | Free Linear Accelerator | -6/Data Miner | Free Lgt. Antimatter Reactor | -6/Data Miner | Free Imp. Phase Shifter | -6/Data Miner | Free Imp. Heavy Siege Treads | -5/Factory | Hacked Adv. Shield Generator | -5/Factory | Scanalyzed Assault Drone Bay | -4/Zhirov | Free Exp. Heat Sink | -4/Zhirov | Free Exp. Optical Array | -4/Zhirov | Free Imp. Arc Thrower | -4/Zhirov | Free Robot Schematics ------------------ L-41 Fighter | -6/Data Miner | Free P-60 Hacker | -6/Data Miner | Free A-15 Conveyor | -6/Data Miner | Free E-15 Imp | -6/Data Miner | Free W-44 Eye | -6/Data Miner | Free G-50 Soldier | -6/Data Miner | Free Fabricated ------------ Lgt. Regenerative Plating | x1 | -5/Factory Imp. KE Penetrator | x1 | -5/Factory Repaired ---------- Coil Gun | 1% | -6/Factory Imp. Heavy Siege Treads | 6% | -6/Factory Imp. Heavy Treads | 18% | -6/Factory Imp. Heavy Siege Treads | 14% | -4/Factory | Broken Imp. Heavy Treads | 1% | -4/Factory Studied --------- Coil Gun | -6/Factory | Hacked Imp. Deuterium Engine | -6/Factory | Hacked Neutrino Core | -5/Factory | Hacked Alien Tech Used ----------------- Core Expander Integrated Reactor Achievements -------------- None Challenges ------------ None Game ------ Seed ExoskeletonMetafiberSpecial Manual? 0 Play Time 04:29:45 Cumulative 193.3 hours Start 2026.02.07 @ 16:34:22 End 2026.02.08 @ 15:07:25 Sessions 5 Manual Loads 0 Difficulty Rogue Special Mode None Game No. 220 Rogue 215 Adventurer 5 Explorer 0 Win Type - Total 6 Types 5/0/0/1/0/0/0/0/0/0 Lore% 58 Gallery% 67 Achievement% 55 Wizard Run 0 Options --------- Layout 0 ASCII 0 Keyboard 1 Movement Vi Keybinds 0 Fullscreen 1 Font 24/Smallcaps Map View 76x50 Zoom Use 0% Tactical HUD 1 Map Filters NONE Filters NONE Steam 1 RUN: 04e0a76e-11e4-42d5-acee-3eaa64cb4537